[Event "World Senior chT-50 2019"]
[Site "Rhodes"]
[Date "2019.04.20"]
[Round "5.15"]
[White "Salonen, Jyrki"]
[Black "Arnason, Jon L"]
[Result "0-1"]
[ECO "B20"]
[WhiteElo "2162"]
[BlackElo "2423"]
[Annotator "NA"]
[PlyCount "54"]
[EventDate "2019.04.16"]
[EventType "team-tourn"]
[EventCountry "GRE"]
[SourceTitle "playchess.com"]
[Source "ChessBase"]
[SourceQuality "1"]
[WhiteTeam "Finland"]
[BlackTeam "Iceland"]
[WhiteTeamCountry "FIN"]
[BlackTeamCountry "ISL"]
[TimeControl "40/5400+30:1800+30"]

1. e4 {[%emt 0:00:00]} c5 {[%emt 0:00:00]} 2. g3 {[%emt 0:00:03]} Nc6 {[%emt 0:01:10]} 3. d3 {[%emt 0:00:27]} g6 {[%emt 0:00:50]} 4. Bg2 {[%emt 0:00:19]} Bg7 {[%emt 0:00:05]} 5. f4 {[%emt 0:00:40]} d6 {[%emt 0:00:27]} 6. Nf3 {[%emt 0:00:26]} e6 {[%emt 0:01:38]} 7. O-O {[%emt 0:00:21]} Nge7 {[%emt 0:00:04]} 8. c3 {[%emt 0:00:49]} O-O {[%emt 0:01:23]} 9. Be3 {[%emt 0:00:37]} b6 {[%emt 0:06:26]} 10. Bf2 {[%emt 0:03:16]} a5 {[%emt 0:11:59]} 11. d4 {[%emt 0:10:38]} Ba6 {[%emt 0:04:26]} 12. Re1 {[%emt 0:00:12]} cxd4 {[%emt 0:00:30]} 13. cxd4 {[%emt 0:01:30]} Nb4 {[%emt 0:02:37]} 14. Bf1 {[%emt 0:01:36]} Qc8 $11 {[%emt 0:07:49]} 15. Nc3 {[%emt 0:08:05]} Bxf1 {[%emt 0:01:15]} 16. Kxf1 {[%emt 0:04:20]} Qa6+ {[%emt 0:00:53]} 17. Kg2 {[%emt 0:02:37]} Rfc8 {[%emt 0:01:41]} 18. Qe2 {[%emt 0:08:35]} Nd3 {[%emt 0:01:03]} 19. Red1 {[%emt 0:18:01]} Rxc3 {[%emt 0:00:15]} 20. Rd2 {[%emt 0:00:22]} Rc1 {[%emt 0:09:57]} 21. Rxc1 {[%emt 0:03:09]} Nxc1 {[%emt 0:00:37]} 22. Qxa6 {[%emt 0:00:13]} Rxa6 {[%emt 0:00:04]} 23. b3 {[%emt 0:00:55]} b5 {[%emt 0:02:42]} 24. Ne1 {[%emt 0:01:06]} b4 {[%emt 0:01:36]} 25. Be3 {[%emt 0:01:06]} a4 {[%emt 0:02:14]} 26. Rc2 {[%emt 0:05:46]} axb3 {[%emt 0:01:11]} 27. Rxc1 {[%emt 0:00:10]} bxa2 {[%emt 0:00:23]} 0-1

[Event "World Senior chT-50 2019"]
[Site "Rhodes"]
[Date "2019.04.20"]
[Round "5.16"]
[White "Thorhallsson, Throstur"]
[Black "Fieandt, John"]
[Result "1-0"]
[ECO "B07"]
[WhiteElo "2425"]
[BlackElo "2151"]
[Annotator "NA"]
[PlyCount "105"]
[EventDate "2019.04.16"]
[EventType "team-tourn"]
[EventCountry "GRE"]
[SourceTitle "playchess.com"]
[Source "ChessBase"]
[SourceQuality "1"]
[WhiteTeam "Iceland"]
[BlackTeam "Finland"]
[WhiteTeamCountry "ISL"]
[BlackTeamCountry "FIN"]
[TimeControl "40/5400+30:1800+30"]

1. e4 {[%emt 0:00:03]} c5 {[%emt 0:00:00]} 2. c3 {[%emt 0:00:27]} d6 {[%emt 0:00:02]} 3. d4 {[%emt 0:00:23]} Nf6 {[%emt 0:00:30]} 4. Bd3 {[%emt 0:00:31]} g6 {[%emt 0:01:30]} 5. Nf3 {[%emt 0:01:03]} Bg7 {[%emt 0:01:39]} 6. O-O {[%emt 0:01:17]} O-O {[%emt 0:03:38]} 7. h3 {[%emt 0:01:08]} Nc6 {[%emt 0:13:13]} 8. a3 {[%emt 0:13:21]} cxd4 $11 {[%emt 0:13:27]} 9. cxd4 {[%emt 0:01:18]} e5 {[%emt 0:00:10]} 10. dxe5 {[%emt 0:03:58]} dxe5 {[%emt 0:03:05]} 11. Nc3 {[%emt 0:00:19]} h6 {[%emt 0:00:19]} 12. Be3 {[%emt 0:12:35]} Be6 {[%emt 0:01:39]} 13. Bb5 {[%emt 0:06:29]} Qxd1 {[%emt 0:12:29]} 14. Raxd1 {[%emt 0:02:49]} Nd7 {[%emt 0:07:36]} 15. Nd5 {[%emt 0:02:05]} Bxd5 {[%emt 0:09:45]} 16. exd5 {[%emt 0:06:15]} Ncb8 {[%emt 0:00:07]} 17. Rc1 {[%emt 0:02:59]} a6 {[%emt 0:07:07]} 18. Ba4 {[%emt 0:04:58]} b5 {[%emt 0:00:52]} 19. Bc2 {[%emt 0:07:02]} f5 {[%emt 0:02:04]} 20. g3 {[%emt 0:13:30]} g5 {[%emt 0:06:43]} 21. Bb3 {[%emt 0:04:30]} a5 {[%emt 0:00:45]} 22. Rfd1 {[%emt 0:02:26]} f4 {[%emt 0:01:30]} 23. gxf4 {[%emt 0:00:27]} gxf4 {[%emt 0:00:25]} 24. Bc5 {[%emt 0:01:10]} Nxc5 {[%emt 0:02:32]} 25. Rxc5 {[%emt 0:00:03]} Nd7 {[%emt 0:00:50]} 26. Rc7 {[%emt 0:02:12]} Rad8 {[%emt 0:03:38]} 27. d6+ {[%emt 0:02:12]} Kh8 {[%emt 0:00:12]} 28. Nh4 {[%emt 0:01:36]} Rf6 {[%emt 0:00:11]} 29. Bc2 {[%emt 0:01:41]} Nf8 {[%emt 0:00:10]} 30. Nf5 {[%emt 0:00:49]} Ne6 {[%emt 0:02:34]} 31. Re7 {[%emt 0:00:42]} Bf8 {[%emt 0:00:49]} 32. Ra7 {[%emt 0:01:33]} Nd4 {[%emt 0:02:43]} 33. Nxd4 {[%emt 0:00:14]} exd4 {[%emt 0:00:06]} 34. Kh1 {[%emt 0:01:19]} d3 {[%emt 0:02:48]} 35. Bxd3 {[%emt 0:00:41]} Bg7 {[%emt 0:00:13]} 36. Rg1 {[%emt 0:02:20]} Rfxd6 {[%emt 0:00:13]} 37. Rgxg7 {[%emt 0:01:16]} Rxd3 {[%emt 0:00:09]} 38. Rh7+ {[%emt 0:00:16]} Kg8 {[%emt 0:00:03]} 39. Rag7+ {[%emt 0:00:40]} Kf8 {[%emt 0:00:02]} 40. Rb7 {[%emt 0:00:00]} Kg8 {[%emt 0:00:00]} 41. Rxh6 {[%emt 0:01:42]} Rb3 {[%emt 0:05:19]} 42. Rg6+ {[%emt 0:03:20]} Kh8 {[%emt 0:00:16]} 43. Rh6+ {[%emt 0:06:30]} Kg8 {[%emt 0:00:03]} 44. Rh4 {[%emt 0:01:06]} Rd4 {[%emt 0:12:44]} 45. Rg4+ {[%emt 0:01:52]} Kh8 {[%emt 0:01:17]} 46. Kg2 {[%emt 0:04:50]} Rxb2 {[%emt 0:02:08]} 47. Rf7 {[%emt 0:04:00]} b4 {[%emt 0:05:49]} 48. Rf5 {[%emt 0:01:46]} f3+ {[%emt 0:08:05]} 49. Rxf3 {[%emt 0:02:03]} Rxg4+ {[%emt 0:00:30]} 50. hxg4 {[%emt 0:00:05]} b3 {[%emt 0:00:02]} 51. Rf8+ {[%emt 0:02:00]} Kg7 {[%emt 0:00:04]} 52. Ra8 {[%emt 0:00:07]} Ra2 {[%emt 0:02:21]} 53. Rxa5 {[%emt 0:00:16]} 1-0

[Event "World Senior chT-50 2019"]
[Site "Rhodes"]
[Date "2019.04.20"]
[Round "5.17"]
[White "Mahia, Gustavo"]
[Black "Wallner, Joachim"]
[Result "0-1"]
[ECO "D15"]
[WhiteElo "2367"]
[BlackElo "2271"]
[Annotator "NA"]
[PlyCount "88"]
[EventDate "2019.04.16"]
[EventType "team-tourn"]
[EventCountry "GRE"]
[SourceTitle "playchess.com"]
[Source "ChessBase"]
[SourceQuality "1"]
[WhiteTeam "Argentina"]
[BlackTeam "Austria"]
[WhiteTeamCountry "ARG"]
[BlackTeamCountry "AUT"]
[TimeControl "40/5400+30:1800+30"]

1. d4 {[%emt 0:00:00]} d5 {[%emt 0:00:00]} 2. Nf3 {[%emt 0:00:00]} Nf6 {[%emt 0:00:00]} 3. c4 {[%emt 0:00:11]} c6 {[%emt 0:00:00]} 4. Nc3 {[%emt 0:00:14]} a6 {[%emt 0:01:18]} 5. a4 {[%emt 0:00:45]} e6 {[%emt 0:00:06]} 6. Bg5 {[%emt 0:02:38]} h6 {[%emt 0:01:50]} 7. Bxf6 {[%emt 0:01:36]} Qxf6 {[%emt 0:00:16]} 8. e3 {[%emt 0:00:18]} Bb4 {[%emt 0:04:12]} 9. Qb3 {[%emt 0:02:19]} a5 {[%emt 0:09:25]} 10. Be2 {[%emt 0:00:30]} Nd7 {[%emt 0:00:42]} 11. O-O {[%emt 0:00:18]} O-O {[%emt 0:00:21]} 12. Rac1 {[%emt 0:13:53]} dxc4 {[%emt 0:13:31]} 13. Bxc4 {[%emt 0:00:28]} e5 {[%emt 0:00:06]} 14. Ne4 {[%emt 0:08:30]} Qe7 {[%emt 0:01:10]} 15. Ng3 {[%emt 0:12:59]} e4 {[%emt 0:04:24]} 16. Ne1 {[%emt 0:04:49]} Nb6 {[%emt 0:02:23]} 17. Be2 {[%emt 0:00:31]} Be6 {[%emt 0:00:33]} 18. Qc2 {[%emt 0:00:06]} f5 {[%emt 0:02:50]} 19. b3 {[%emt 0:05:16]} Nd5 {[%emt 0:04:41]} 20. Bc4 {[%emt 0:00:15]} Rad8 {[%emt 0:14:45]} 21. Qe2 {[%emt 0:00:44]} Bd6 {[%emt 0:01:35]} 22. Nc2 {[%emt 0:05:40]} Qg5 {[%emt 0:04:30]} 23. f4 {[%emt 0:07:05]} exf3 {[%emt 0:00:33]} 24. Qxf3 {[%emt 0:00:16]} Bxg3 {[%emt 0:04:53]} 25. Qxg3 {[%emt 0:01:20]} Qxg3 {[%emt 0:00:09]} 26. hxg3 {[%emt 0:00:02]} Rde8 {[%emt 0:00:25]} 27. Rfe1 {[%emt 0:09:12]} Bf7 {[%emt 0:06:30]} 28. g4 {[%emt 0:09:37]} fxg4 {[%emt 0:00:25]} 29. e4 {[%emt 0:00:07]} Nf4 {[%emt 0:00:14]} 30. Rcd1 {[%emt 0:00:50]} h5 {[%emt 0:01:27]} 31. e5 {[%emt 0:00:17]} Bd5 {[%emt 0:01:04]} 32. Ne3 {[%emt 0:00:20]} g3 {[%emt 0:02:23]} 33. Rd2 {[%emt 0:02:13]} g6 {[%emt 0:02:27]} 34. Rc1 {[%emt 0:01:34]} Rd8 {[%emt 0:00:34]} 35. Nf1 {[%emt 0:01:01]} h4 {[%emt 0:00:10]} 36. Ne3 {[%emt 0:00:08]} Kh8 {[%emt 0:02:33]} 37. Bxd5 {[%emt 0:00:53]} Nxd5 {[%emt 0:00:05]} 38. Re1 {[%emt 0:00:36]} Nf4 {[%emt 0:01:35]} 39. Ng4 {[%emt 0:00:19]} Ne6 {[%emt 0:00:23]} 40. Nf6 {[%emt 0:00:00]} Nxd4 {[%emt 0:00:00]} 41. Re4 {[%emt 0:05:41]} Nf5 {[%emt 0:04:35]} 42. Ree2 {[%emt 0:00:37]} Kg7 {[%emt 0:01:06]} 43. Nd7 {[%emt 0:00:18]} Rfe8 {[%emt 0:01:17]} 44. Nf6 {[%emt 0:00:11]} Rxe5 {[%emt 0:01:44]} 0-1

[Event "World Senior chT-50 2019"]
[Site "Rhodes"]
[Date "2019.04.20"]
[Round "5.18"]
[White "Denk, Adolf"]
[Black "Garbarino, Rodolfo"]
[Result "1/2-1/2"]
[ECO "D35"]
[WhiteElo "2255"]
[BlackElo "2335"]
[Annotator "NA"]
[PlyCount "23"]
[EventDate "2019.04.16"]
[EventType "team-tourn"]
[EventCountry "GRE"]
[SourceTitle "playchess.com"]
[Source "ChessBase"]
[SourceQuality "1"]
[WhiteTeam "Austria"]
[BlackTeam "Argentina"]
[WhiteTeamCountry "AUT"]
[BlackTeamCountry "ARG"]
[TimeControl "40/5400+30:1800+30"]

1. c4 {[%emt 0:00:00]} e6 {[%emt 0:00:00]} 2. Nc3 {[%emt 0:00:00]} d5 {[%emt 0:00:00]} 3. cxd5 {[%emt 0:00:16]} exd5 {[%emt 0:00:00]} 4. d4 {[%emt 0:00:06]} c6 {[%emt 0:01:03]} 5. Nf3 {[%emt 0:01:40]} Bd6 {[%emt 0:02:41]} 6. g3 {[%emt 0:01:24]} Nf6 {[%emt 0:03:58]} 7. Bg2 {[%emt 0:02:03]} O-O {[%emt 0:01:20]} 8. O-O {[%emt 0:00:51]} Re8 {[%emt 0:05:31]} 9. Bf4 {[%emt 0:09:04]} Bxf4 {[%emt 0:05:09]} 10. gxf4 {[%emt 0:00:02]} Qd6 {[%emt 0:04:05]} 11. e3 {[%emt 0:02:48]} Bf5 {[%emt 0:01:36]} 12. Ne5 {[%emt 0:03:46]} 1/2-1/2

[Event "World Senior chT-50 2019"]
[Site "Rhodes"]
[Date "2019.04.20"]
[Round "5.19"]
[White "Grushka, Carlos"]
[Black "Druckenthaner, Andreas"]
[Result "1-0"]
[ECO "A87"]
[WhiteElo "2251"]
[BlackElo "2304"]
[Annotator "NA"]
[PlyCount "139"]
[EventDate "2019.04.16"]
[EventType "team-tourn"]
[EventCountry "GRE"]
[SourceTitle "playchess.com"]
[Source "ChessBase"]
[SourceQuality "1"]
[WhiteTeam "Argentina"]
[BlackTeam "Austria"]
[WhiteTeamCountry "ARG"]
[BlackTeamCountry "AUT"]
[TimeControl "40/5400+30:1800+30"]

1. Nf3 {[%emt 0:00:00]} f5 {[%emt 0:00:00]} 2. g3 {[%emt 0:00:00]} Nf6 {[%emt 0:00:00]} 3. Bg2 {[%emt 0:00:02]} d6 {[%emt 0:00:29]} 4. d4 {[%emt 0:00:05]} e6 {[%emt 0:00:16]} 5. O-O {[%emt 0:00:19]} g6 {[%emt 0:00:33]} 6. c4 {[%emt 0:00:15]} Bg7 {[%emt 0:00:10]} 7. Nc3 {[%emt 0:00:34]} O-O {[%emt 0:00:13]} 8. Qc2 {[%emt 0:01:07]} Nc6 {[%emt 0:00:19]} 9. Rd1 {[%emt 0:00:44]} Qe7 {[%emt 0:01:11]} 10. b3 {[%emt 0:01:25]} Bd7 {[%emt 0:11:25]} 11. Bb2 {[%emt 0:01:45]} Rae8 {[%emt 0:03:43]} 12. e4 {[%emt 0:08:46]} fxe4 {[%emt 0:07:32]} 13. Nxe4 {[%emt 0:00:15]} Nxe4 {[%emt 0:00:49]} 14. Qxe4 {[%emt 0:00:07]} e5 {[%emt 0:00:30]} 15. dxe5 {[%emt 0:03:01]} dxe5 {[%emt 0:00:13]} 16. Re1 {[%emt 0:13:35]} Kh8 {[%emt 0:14:52]} 17. Qe3 {[%emt 0:07:40]} e4 {[%emt 0:05:35]} 18. Bxg7+ {[%emt 0:08:07]} Qxg7 {[%emt 0:00:19]} 19. Ng5 {[%emt 0:01:44]} Nd4 {[%emt 0:01:09]} 20. Rad1 {[%emt 0:11:28]} Nc2 {[%emt 0:06:31]} 21. Rxd7 {[%emt 0:07:14]} Qxd7 {[%emt 0:00:27]} 22. Qc3+ {[%emt 0:00:05]} Nd4 {[%emt 0:00:26]} 23. Rd1 {[%emt 0:02:03]} c5 {[%emt 0:00:27]} 24. Nxe4 {[%emt 0:00:10]} Qg7 {[%emt 0:01:04]} 25. Kf1 {[%emt 0:00:33]} b6 {[%emt 0:00:48]} 26. b4 {[%emt 0:00:13]} Rf5 {[%emt 0:10:51]} 27. bxc5 {[%emt 0:01:47]} bxc5 {[%emt 0:00:08]} 28. Nxc5 {[%emt 0:12:26]} Rxc5 {[%emt 0:09:07]} 29. Rxd4 {[%emt 0:01:28]} Rce5 {[%emt 0:07:41]} 30. Bf3 {[%emt 0:04:02]} Rc5 {[%emt 0:06:57]} 31. Qd2 {[%emt 0:00:31]} Rce5 {[%emt 0:01:32]} 32. Kg2 {[%emt 0:00:36]} h5 {[%emt 0:02:23]} 33. h4 {[%emt 0:00:59]} Kh7 {[%emt 0:02:12]} 34. Rd6 {[%emt 0:01:33]} Rf8 {[%emt 0:00:49]} 35. Rd7 {[%emt 0:04:02]} Re7 {[%emt 0:00:37]} 36. Rxe7 {[%emt 0:02:06]} Qxe7 {[%emt 0:00:06]} 37. Qd4 {[%emt 0:01:31]} Rc8 {[%emt 0:01:27]} 38. Bd5 {[%emt 0:00:31]} Rc7 {[%emt 0:01:18]} 39. Kh3 {[%emt 0:01:45]} Qd7+ {[%emt 0:00:39]} 40. Kg2 {[%emt 0:01:11]} Qe7 {[%emt 0:00:10]} 41. Qf4 {[%emt 0:00:33]} Rc8 {[%emt 0:01:17]} 42. Be4 {[%emt 0:01:57]} Kg7 {[%emt 0:05:54]} 43. Bd5 {[%emt 0:00:43]} a5 {[%emt 0:03:36]} 44. a4 {[%emt 0:00:26]} Rf8 {[%emt 0:00:40]} 45. Qd4+ {[%emt 0:00:16]} Qf6 {[%emt 0:00:15]} 46. Qe3 {[%emt 0:00:18]} Qf5 {[%emt 0:03:12]} 47. Qd4+ {[%emt 0:06:40]} Qf6 {[%emt 0:00:25]} 48. Qa7+ {[%emt 0:00:19]} Kh6 {[%emt 0:00:53]} 49. Qe3+ {[%emt 0:00:27]} Kg7 {[%emt 0:01:36]} 50. c5 {[%emt 0:00:12]} Rc8 {[%emt 0:02:05]} 51. Bf3 {[%emt 0:01:59]} Rc7 {[%emt 0:01:05]} 52. Qc1 {[%emt 0:01:59]} Qe5 {[%emt 0:02:14]} 53. c6 {[%emt 0:00:15]} Re7 {[%emt 0:00:47]} 54. Qc4 {[%emt 0:00:27]} Rc7 {[%emt 0:00:33]} 55. Qb5 {[%emt 0:01:05]} Re7 {[%emt 0:00:20]} 56. Bd5 {[%emt 0:03:56]} Qc3 {[%emt 0:01:12]} 57. Qb8 {[%emt 0:00:31]} Qc5 {[%emt 0:01:09]} 58. Qd8 {[%emt 0:02:10]} Ra7 {[%emt 0:03:04]} 59. Qg8+ {[%emt 0:00:48]} Kf6 {[%emt 0:01:54]} 60. Qe6+ {[%emt 0:00:13]} Kg7 {[%emt 0:00:09]} 61. Be4 {[%emt 0:00:38]} Rf7 {[%emt 0:01:10]} 62. Qxg6+ {[%emt 0:00:15]} Kf8 {[%emt 0:00:06]} 63. Bf3 {[%emt 0:01:16]} Ke7 {[%emt 0:00:11]} 64. Qxh5 {[%emt 0:00:20]} Qc3 {[%emt 0:02:27]} 65. Qd5 {[%emt 0:00:18]} Kf8 {[%emt 0:00:27]} 66. h5 {[%emt 0:00:17]} Kg7 {[%emt 0:00:18]} 67. g4 {[%emt 0:00:14]} Re7 {[%emt 0:00:17]} 68. Qd6 {[%emt 0:01:41]} Qb4 {[%emt 0:00:17]} 69. h6+ {[%emt 0:00:17]} Kh7 {[%emt 0:00:12]} 70. Qf6 {[%emt 0:00:18]} 1-0

[Event "World Senior chT-50 2019"]
[Site "Rhodes"]
[Date "2019.04.20"]
[Round "5.20"]
[White "Ernst, Michael"]
[Black "Perez Wertheim, Rodolfo"]
[Result "1-0"]
[ECO "A80"]
[WhiteElo "2184"]
[BlackElo "1914"]
[Annotator "NA"]
[PlyCount "81"]
[EventDate "2019.04.16"]
[EventType "team-tourn"]
[EventCountry "GRE"]
[SourceTitle "playchess.com"]
[Source "ChessBase"]
[SourceQuality "1"]
[WhiteTeam "Austria"]
[BlackTeam "Argentina"]
[WhiteTeamCountry "AUT"]
[BlackTeamCountry "ARG"]
[TimeControl "40/5400+30:1800+30"]

1. d4 {[%emt 0:00:00]} e6 {[%emt 0:00:00]} 2. Bf4 {[%emt 0:00:00]} f5 {[%emt 0:00:04]} 3. e3 {[%emt 0:00:21]} Nf6 {[%emt 0:00:30]} 4. Nf3 {[%emt 0:00:12]} b6 {[%emt 0:01:46]} 5. Be2 {[%emt 0:01:48]} Bb7 {[%emt 0:00:06]} 6. O-O {[%emt 0:00:48]} Be7 {[%emt 0:01:21]} 7. h3 {[%emt 0:00:25]} O-O {[%emt 0:00:13]} 8. Bh2 {[%emt 0:02:00]} Ne4 {[%emt 0:05:52]} 9. Nbd2 {[%emt 0:00:50]} d6 {[%emt 0:02:50]} 10. c3 {[%emt 0:00:43]} Nd7 {[%emt 0:02:14]} 11. Qb3 {[%emt 0:02:02]} d5 {[%emt 0:00:08]} 12. Rfd1 {[%emt 0:05:36]} c5 {[%emt 0:09:14]} 13. a4 {[%emt 0:01:09]} c4 {[%emt 0:09:00]} 14. Qc2 {[%emt 0:01:09]} Rc8 {[%emt 0:02:43]} 15. Ne5 {[%emt 0:00:33]} Bd6 {[%emt 0:09:46]} 16. f3 {[%emt 0:03:27]} Nef6 {[%emt 0:07:27]} 17. Rdc1 {[%emt 0:09:29]} Qc7 {[%emt 0:03:08]} 18. f4 {[%emt 0:00:53]} Ne4 {[%emt 0:09:14]} 19. Nxe4 {[%emt 0:02:34]} fxe4 {[%emt 0:00:06]} 20. b3 {[%emt 0:02:54]} Ba6 {[%emt 0:08:21]} 21. b4 {[%emt 0:03:19]} b5 {[%emt 0:03:53]} 22. Qa2 {[%emt 0:01:43]} Ra8 {[%emt 0:00:06]} 23. Bg3 {[%emt 0:00:49]} Bxe5 {[%emt 0:01:36]} 24. fxe5 {[%emt 0:00:33]} Nb6 {[%emt 0:01:27]} 25. Bg4 {[%emt 0:02:38]} Qe7 {[%emt 0:01:48]} 26. axb5 {[%emt 0:01:44]} Bxb5 {[%emt 0:00:09]} 27. Qa5 {[%emt 0:00:23]} Bd7 {[%emt 0:04:42]} 28. Rc2 {[%emt 0:02:11]} g6 {[%emt 0:05:42]} 29. h4 {[%emt 0:04:05]} h5 {[%emt 0:03:32]} 30. Bh3 {[%emt 0:00:33]} g5 {[%emt 0:00:04]} 31. hxg5 {[%emt 0:00:47]} Qxg5 {[%emt 0:00:01]} 32. Bf4 {[%emt 0:00:47]} Qg6 {[%emt 0:01:53]} 33. Rca2 {[%emt 0:00:43]} Rfc8 {[%emt 0:01:15]} 34. Qa3 {[%emt 0:01:32]} a6 {[%emt 0:01:06]} 35. Qa5 {[%emt 0:01:34]} Rcb8 {[%emt 0:01:33]} 36. Qc5 {[%emt 0:00:42]} Bc8 {[%emt 0:01:05]} 37. Qd6 {[%emt 0:02:01]} Qe8 {[%emt 0:00:51]} 38. b5 {[%emt 0:01:29]} axb5 {[%emt 0:01:25]} 39. Ra7 {[%emt 0:00:57]} Na4 {[%emt 0:01:40]} 40. Re7 {[%emt 0:00:00]} Qxe7 {[%emt 0:00:00]} 41. Qxe7 {[%emt 0:00:22]} 1-0

[Event "World Senior chT-50 2019"]
[Site "Rhodes"]
[Date "2019.04.20"]
[Round "5.21"]
[White "Burchardt, Brigitte"]
[Black "Soffer, Ram"]
[Result "0-1"]
[ECO "B48"]
[WhiteElo "2136"]
[BlackElo "2486"]
[Annotator "ChessBase"]
[PlyCount "72"]
[EventDate "2019.04.16"]
[EventType "team-tourn"]
[EventCountry "GRE"]
[SourceTitle "playchess.com"]
[Source "ChessBase"]
[SourceQuality "1"]
[WhiteTeam "Germany"]
[BlackTeam "Israel"]
[WhiteTeamCountry "GER"]
[BlackTeamCountry "ISR"]
[TimeControl "40/5400+30:1800+30"]

1. e4 {[%emt 0:00:00]} c5 {[%emt 0:00:00]} 2. Nf3 {[%emt 0:00:00]} Nc6 {[%emt 0:00:00]} 3. d4 {[%emt 0:00:48]} cxd4 {[%emt 0:00:05]} 4. Nxd4 {[%emt 0:00:03]} e6 {[%emt 0:00:52]} 5. Nc3 {[%emt 0:00:17]} Qc7 {[%emt 0:01:06]} 6. Be3 {[%emt 0:00:26]} a6 {[%emt 0:00:04]} 7. Qf3 {[%emt 0:00:24]} Nf6 {[%emt 0:00:36]} 8. O-O-O {[%emt 0:04:44]} Nxd4 {[%emt 0:01:51]} 9. Bxd4 {[%emt 0:00:27]} e5 {[%emt 0:00:04]} 10. Qg3 {[%emt 0:02:56]} d6 {[%emt 0:02:21]} 11. Be3 {[%emt 0:03:30]} Be6 {[%emt 0:02:27]} 12. f3 {[%emt 0:02:16]} b5 {[%emt 0:03:39]} 13. Kb1 {[%emt 0:03:24]} Rc8 {[%emt 0:06:49]} 14. Qf2 {[%emt 0:02:27]} Qb7 {[%emt 0:04:32]} 15. Qd2 {[%emt 0:08:08]} Be7 {[%emt 0:03:00]} 16. g4 {[%emt 0:07:34]} b4 {[%emt 0:05:30]} 17. Nd5 {[%emt 0:00:29]} Bxd5 {[%emt 0:00:06]} 18. exd5 {[%emt 0:00:05]} O-O {[%emt 0:04:41]} 19. h4 {[%emt 0:03:09]} Nd7 {[%emt 0:12:39]} 20. Bd3 {[%emt 0:06:58]} Nc5 {[%emt 0:01:59]} 21. Bf5 {[%emt 0:08:17]} Rc7 {[%emt 0:01:34]} 22. Bxc5 {[%emt 0:00:04]} Rxc5 {[%emt 0:00:04]} 23. g5 {[%emt 0:00:56]} Qb5 {[%emt 0:03:59]} 24. Bd3 {[%emt 0:13:23]} Qa4 {[%emt 0:00:23]} 25. Qe2 {[%emt 0:00:57]} Rfc8 {[%emt 0:03:20]} 26. Qe4 {[%emt 0:00:27]} g6 {[%emt 0:00:06]} 27. f4 {[%emt 0:15:02]} Ra5 {[%emt 0:01:04]} 28. Bc4 {[%emt 0:00:06]} b3 {[%emt 0:00:23]} 29. cxb3 {[%emt 0:00:58]} Qxa2+ {[%emt 0:00:06]} 30. Kc2 {[%emt 0:00:35]} Rac5 {[%emt 0:00:20]} 31. Kd3 {[%emt 0:01:45]} Rxc4 {[%emt 0:13:57]} 32. bxc4 {[%emt 0:00:09]} Qb3+ {[%emt 0:00:05]} 33. Ke2 {[%emt 0:01:10]} Rxc4 {[%emt 0:00:04]} 34. Qd3 {[%emt 0:00:49]} Qb4 {[%emt 0:00:28]} 35. fxe5 {[%emt 0:04:57]} Qxb2+ {[%emt 0:04:05]} 36. Kf3 {[%emt 0:02:36]} Rc3 {[%emt 0:00:39]} 0-1

[Event "World Senior chT-50 2019"]
[Site "Rhodes"]
[Date "2019.04.20"]
[Round "5.22"]
[White "Manor, Ilan"]
[Black "Wagner-Michel, Annett"]
[Result "1-0"]
[ECO "B23"]
[WhiteElo "2461"]
[BlackElo "2056"]
[Annotator "ChessBase"]
[PlyCount "57"]
[EventDate "2019.04.16"]
[EventType "team-tourn"]
[EventCountry "GRE"]
[SourceTitle "playchess.com"]
[Source "ChessBase"]
[SourceQuality "1"]
[WhiteTeam "Israel"]
[BlackTeam "Germany"]
[WhiteTeamCountry "ISR"]
[BlackTeamCountry "GER"]
[TimeControl "40/5400+30:1800+30"]

1. e4 {[%emt 0:00:13]} c5 {[%emt 0:00:00]} 2. Nc3 {[%emt 0:00:22]} Nc6 {[%emt 0:00:00]} 3. f4 {[%emt 0:00:05]} g6 {[%emt 0:00:00]} 4. Nf3 {[%emt 0:00:44]} Bg7 {[%emt 0:00:05]} 5. f5 {[%emt 0:02:30]} e6 {[%emt 0:02:54]} 6. Bb5 {[%emt 0:29:36]} Nge7 {[%emt 0:33:31]} 7. d3 {[%emt 0:13:23]} O-O {[%emt 0:15:32]} 8. Bg5 {[%emt 0:04:26]} exf5 {[%emt 0:04:04]} 9. Qd2 {[%emt 0:05:51]} a6 {[%emt 0:07:40]} 10. Ba4 {[%emt 0:03:20]} Qa5 {[%emt 0:06:01]} 11. Bxc6 {[%emt 0:03:14]} Nxc6 {[%emt 0:00:15]} 12. exf5 {[%emt 0:00:19]} f6 {[%emt 0:04:50]} 13. Be3 {[%emt 0:10:20]} d6 {[%emt 0:02:15]} 14. g4 {[%emt 0:00:41]} Ne5 {[%emt 0:00:42]} 15. Nxe5 {[%emt 0:02:10]} fxe5 {[%emt 0:02:30]} 16. O-O-O {[%emt 0:00:52]} gxf5 {[%emt 0:02:26]} 17. gxf5 {[%emt 0:00:09]} Bxf5 {[%emt 0:00:29]} 18. Rdg1 {[%emt 0:00:44]} Rf7 {[%emt 0:00:41]} 19. Kb1 {[%emt 0:02:28]} Rd8 {[%emt 0:05:08]} 20. Bh6 {[%emt 0:00:41]} Rdd7 {[%emt 0:00:24]} 21. h4 {[%emt 0:08:34]} Kh8 {[%emt 0:01:20]} 22. Qg5 {[%emt 0:01:26]} Be6 {[%emt 0:00:44]} 23. Bxg7+ {[%emt 0:01:25]} Rxg7 {[%emt 0:00:02]} 24. Qf6 {[%emt 0:00:10]} Bg8 {[%emt 0:03:36]} 25. Rxg7 {[%emt 0:00:13]} Rxg7 {[%emt 0:00:04]} 26. h5 {[%emt 0:00:11]} h6 {[%emt 0:01:51]} 27. Qxh6+ {[%emt 0:00:05]} Bh7 {[%emt 0:00:09]} 28. Qf6 {[%emt 0:01:03]} Kg8 {[%emt 0:02:51]} 29. Rf1 {[%emt 0:00:09]} 1-0